bitfinex-derivatives/quotes_ETHF0:USTF0_20251007
["timestamp","ask_amount","ask_price","bid_price","bid_amount"]
[1759851595906,0.99777,4506.9,4504.9,1.3748]
[1759851595907,0.39919,4505.9,4504.9,1.3748]
[1759851596208,0.99785,4506.6,4504.9,1.3748]
[1759851596401,0.39928,4505.0,4504.8,0.5483]
[1759851596606,0.231,4505.9,4504.8,0.5483]
[1759851596904,0.00282631,4505.9,4505.4,0.5483]
[1759851597103,0.00282631,4505.9,4505.5,1.3748]
[1759851597304,2.38926,4507.9,4505.8,1.3748]
[1759851597507,0.39907,4507.4,4507.2,0.5483]
[1759851597715,0.39902,4507.9,4507.3,1.3748]
[1759851597913,0.231,4508.8,4507.3,1.3748]
[1759851598110,0.99715,4509.7,4507.4,1.3748]
[1759851598307,0.00248049,4509.7,4507.9,1.3748]
[1759851598508,0.00248049,4509.7,4508.1,1.3748]
[1759851598806,1.3917,4511.9,4509.7,1.3748]
[1759851599010,0.39875,4510.9,4509.7,1.3748]
[1759851599211,1.3917,4511.5,4509.7,1.6028]
[1759851599513,0.194,4511.8,4509.7,1.6028]
[1759851599714,0.00221899,4511.8,4509.9,1.3748]
[1759851599914,0.00221899,4511.8,4510.1,0.5483]
[1759851600113,0.00221899,4511.8,4511.6,1.3748]
[1759851600310,1.79038,4511.7,4511.6,0.00223557]
[1759851600712,5.39868,4511.7,4511.6,0.00223557]
[1759851600907,6.79038,4511.7,4511.6,5.57e-06]
[1759851601111,10.96461,4511.4,4508.1,0.39899]
[1759851601312,0.39888,4509.5,4509.3,1.3748]
[1759851601510,1.3917,4509.8,4508.8,42.1748]
[1759851601709,0.39882,4510.1,4508.1,1.3748]
[1759851601904,2.86901399,4510.6,4509.0,1.3748]
[1759851602211,0.043,4511.6,4510.1,0.5483]
[1759851602423,0.39891,4509.1,4509.0,0.00261839]
[1759851602710,0.39891,4509.1,4506.6,0.5483]
[1759851602711,1.4782,4509.1,4507.2,1.3778]
[1759851602919,0.39896,4508.6,4507.4,1.3778]
[1759851603109,0.39897,4508.4,4507.4,1.3778]
[1759851603304,4.41860684,4509.1,4507.4,1.3778]
[1759851603604,0.00285557,4509.1,4507.5,1.3778]
[1759851603806,0.00285557,4509.1,4508.8,1.3778]
[1759851604113,0.39896,4508.6,4508.0,0.5642]
[1759851604305,1.00013557,4509.1,4508.0,0.5642]
[1759851604507,0.00285557,4509.1,4507.8,1.3778]
[1759851604708,2.94136799,4509.0,4507.5,1.3778]
[1759851604908,2.94136799,4509.0,4507.4,1.37945076]
[1759851605114,0.399,4508.2,4507.4,1.37945076]
[1759851605310,1.87725,4507.5,4507.4,0.00165076]
[1759851605708,7.47583,4507.5,4506.6,1.3778]
[1759851606016,0.39915,4506.5,4506.0,1.4278]
[1759851606313,0.39914,4506.5,4506.0,0.05]
[1759851606511,2.89347346,4507.5,4506.1,1.3778]
[1759851606816,0.232,4508.2,4506.1,1.37936228]
[1759851607009,0.39914,4506.5,4506.1,0.00156228]
[1759851607204,0.232,4507.3,4506.1,0.00156228]
[1759851607410,0.39915,4506.4,4506.1,0.00156228]
[1759851607610,0.39916,4506.3,4506.2,1.3778]
[1759851608013,0.39916,4506.3,4506.1,0.00156228]
[1759851608014,1.4782,4506.2,4506.1,0.00156228]
[1759851608316,5.0,4506.2,4506.1,0.00156228]
[1759851608512,0.39916,4506.3,4506.1,0.00156228]
[1759851608820,0.39917,4506.1,4506.0,0.05]
[1759851609120,1.87737,4506.1,4506.0,0.05]
[1759851609308,0.39928,4505.0,4504.6,1.3778]
[1759851609505,6.4782,4506.1,4504.4,0.47266251]
[1759851609506,0.99806,4505.6,4504.4,0.47266251]
[1759851609706,0.99806,4505.6,4504.4,0.47479263]
[1759851609707,0.39931,4504.6,4504.4,0.47479263]
[1759851609911,0.39929,4504.8,4504.5,1.3778]
[1759851610106,0.39931,4504.6,4504.5,1.3778]
[1759851610312,0.39931,4504.6,4504.4,0.47479263]
[1759851611015,0.39943,4503.2,4502.9,0.02220816]
[1759851611317,1.0235,4503.3,4501.7,1.3778]
[1759851611617,0.232,4503.2,4501.8,40.8]
[1759851611812,2.82017735,4503.2,4501.7,1.3778]
[1759851612019,0.39951,4502.3,4501.7,1.3794004]
[1759851612313,0.39959,4501.5,4501.3,22.3765521]
[1759851612512,0.39959,4501.5,4501.3,21.79990862]
[1759851612513,0.174,4501.4,4501.3,21.79990862]
[1759851612718,3.06097657,4501.4,4501.3,23.17770862]
[1759851612909,7.88697657,4501.4,4501.3,21.79990862]
[1759851613119,0.00206548,4502.3,4501.8,0.5642]
[1759851613412,0.00206548,4502.3,4499.6,0.39974]
[1759851613413,9.99409,4499.6,4493.7,1.26986251]
[1759851613616,0.233,4499.5,4496.4,0.5642]
[1759851613916,0.015,4499.7,4498.2,0.5642]
[1759851614112,0.39973,4499.8,4498.6,10.0]
[1759851614310,0.39973,4499.8,4499.0,0.5642]
[1759851614311,2.84901918,4499.8,4499.0,0.5642]
[1759851614519,2.84901918,4499.8,4498.6,0.0021479]
[1759851614520,0.39978,4499.3,4498.6,0.0021479]
[1759851614819,0.233,4499.5,4498.8,9.82814636]
[1759851615017,0.2117,4496.9,4495.0,0.5642]
[1759851615212,0.39989,4498.1,4496.0,0.5642]
[1759851615413,0.2117,4498.9,4496.1,1.3778]
[1759851615614,0.99953,4499.0,4496.1,1.3778]
[1759851615615,2.94994048,4498.0,4496.1,1.3778]
[1759851615809,0.2117,4497.3,4495.0,1.942]
[1759851616014,0.40015,4495.2,4495.0,0.00248798]
[1759851616216,0.40015,4495.2,4492.9,0.02225759]
[1759851616217,0.61197,4493.8,4492.9,0.02225759]
[1759851616418,0.40033,4493.1,4491.6,1.3778]
[1759851616614,0.174,4493.0,4492.1,9.82814636]
[1759851616818,2.8622704,4493.8,4492.4,0.5642]
[1759851617022,2.8622704,4493.8,4490.5,0.03874903]
[1759851617023,2.8622704,4492.9,4490.6,0.22718052]
[1759851617224,0.40062,4489.9,4488.0,0.0012]
[1759851617517,10.01706,4489.2,4485.0,0.01273674]
[1759851617712,10.01797,4488.8,4485.1,40.8]
[1759851617917,0.40103,4485.3,4485.0,0.01273674]
[1759851618219,0.40116,4483.9,4479.6,1.3778]
[1759851618419,0.40123,4483.0,4479.6,1.3778]
[1759851618620,0.40117,4483.7,4481.0,0.00662466]
[1759851618818,34.656,4484.3,4481.4,0.5642]
[1759851618819,2.91402287,4482.9,4481.4,0.5642]
[1759851619122,2.91402287,4483.6,4481.4,0.5642]
[1759851619323,2.90926716,4482.8,4481.4,0.5642]
[1759851619520,2.90926716,4483.5,4481.7,9.82814636]
[1759851619726,2.90926716,4482.7,4481.6,1.3778]
[1759851619924,2.90926716,4483.4,4481.6,1.3778]
[1759851620123,2.90926716,4483.4,4481.7,0.235]
[1759851620317,2.90926716,4483.4,4481.6,0.5642]
[1759851620318,34.677,4488.0,4483.2,0.5642]
[1759851620520,0.236,4488.7,4484.4,0.4011]
[1759851620726,0.63672,4488.7,4484.8,0.5642]
[1759851620921,0.4007,4489.0,4486.3,0.5642]
[1759851621127,0.40056,4490.5,4488.0,0.5642]
[1759851621424,0.40054,4490.8,4488.0,0.56582986]
[1759851621722,0.027,4491.8,4489.7,0.5642]
[1759851621922,10.0061,4494.2,4489.7,0.5642]
[1759851622124,10.00202,4496.0,4491.0,0.5642]
[1759851622325,10.00278,4495.6,4491.9,4.04874372]
[1759851622623,10.005,4494.6,4492.8,0.5642]
[1759851622817,0.40023,4494.3,4493.1,4.04874372]
[1759851623017,2.96011322,4494.5,4492.9,1.3778]
[1759851623218,2.62967596,4494.2,4492.8,0.5642]
[1759851623419,0.00157673,4495.6,4494.7,1.3778]
[1759851623420,2.93493868,4495.3,4494.7,1.3778]
[1759851623622,0.00157673,4495.6,4495.1,4.04874372]
[1759851623824,0.236,4495.3,4494.6,0.5642]
[1759851624122,10.00499,4494.7,4491.6,1.3778]
[1759851624325,10.00781,4493.4,4489.8,1.3778]
[1759851624519,10.0025,4495.8,4490.9,1.3778]
[1759851624719,0.40009,4495.8,4493.5,0.5642]
[1759851624919,34.706,4495.9,4493.5,1.94457312]
[1759851625125,0.237,4495.5,4494.7,4.04874372]
[1759851625323,0.237,4495.5,4493.5,1.94457312]
[1759851625324,0.39996,4497.3,4494.3,1.3778]
[1759851625524,0.39991,4497.8,4495.5,1.3778]
[1759851625731,35.1079,4498.0,4495.5,1.3778]
[1759851626022,0.237,4497.7,4495.5,1.3778]
[1759851626222,0.237,4497.6,4495.6,40.8]
[1759851626423,0.237,4497.6,4493.5,0.56677312]
[1759851626424,0.40004,4496.3,4493.5,0.56677312]
[1759851626625,0.00229907,4496.3,4493.6,1.3778]
[1759851626826,3.36644204,4496.2,4495.4,0.5642]
[1759851627028,2.96638204,4496.2,4495.4,0.5642]
[1759851627325,0.40013,4495.3,4493.5,0.56677312]
[1759851627526,2.93838204,4496.2,4493.6,1.3778]
[1759851627822,2.83062907,4495.2,4493.6,1.3778]
[1759851628023,2.83062907,4496.1,4495.5,1.3778]
[1759851628224,0.00229907,4496.3,4495.4,0.5642]
[1759851628430,37.79258474,4496.0,4495.4,0.39212347]
[1759851628728,0.00229907,4496.3,4493.7,1.3778]
[1759851629028,2.84758474,4495.9,4495.4,0.5642]
[1759851629231,0.00229907,4496.3,4495.4,0.5642]
[1759851629425,0.00229907,4496.3,4493.5,0.56677312]
[1759851629426,0.39917,4506.2,4502.2,1.3778]
[1759851629623,34.707,4507.3,4504.9,4.04716699]
[1759851629827,0.239,4507.2,4504.9,4.04716699]
[1759851630123,0.39913,4506.6,4503.1,1.3778]
[1759851630426,0.00233248,4506.6,4503.2,1.3778]
[1759851630626,0.00233248,4506.6,4505.1,4.04716699]
[1759851630823,0.00233248,4506.6,4505.3,4.04716699]
[1759851631024,0.39919,4505.9,4504.0,1.3778]
[1759851631224,0.39925,4505.2,4504.1,4.04716699]
[1759851631423,0.8197,4505.1,4503.1,0.00213548]
[1759851631624,34.726,4505.0,4503.1,0.00213548]
[1759851632020,2.88044101,4504.9,4503.1,0.00213548]
[1759851632221,0.5807,4506.3,4503.2,1.3778]
[1759851632430,0.00233248,4506.6,4504.5,0.6544]
[1759851632628,226.82249,4510.7,4506.5,1.86054]
[1759851632629,0.39884,4510.0,4506.5,1.86054]
[1759851632927,3.94923134,4509.9,4506.6,0.6544]
[1759851633121,1.0662,4508.3,4507.0,4.04483451]
[1759851633327,2.85503134,4509.9,4505.3,9.98117]
[1759851633527,0.39888,4509.4,4506.4,0.39914]
[1759851633722,0.031,4509.3,4508.3,4.04483451]
[1759851633928,0.39893,4508.9,4506.6,0.6544]
[1759851634127,1.46514,4508.8,4506.6,0.6544]
[1759851634333,1.46514,4508.8,4506.4,0.00217229]
[1759851634334,0.39901,4508.0,4506.4,0.00217229]
[1759851634531,0.238,4507.9,4506.5,4.04483451]
[1759851634731,0.39905,4507.5,4506.5,4.04483451]
[1759851634931,0.238,4507.9,4506.5,4.04483451]
[1759851635235,0.238,4507.9,4506.4,0.00217229]
[1759851635236,2.91744779,4507.4,4506.4,0.00217229]
[1759851635432,1.0662,4507.7,4506.4,0.00217229]
[1759851635729,0.39909,4507.0,4506.4,0.00217229]
[1759851636033,3.32222693,4506.9,4506.4,0.00217229]
[1759851636236,1.0662,4506.8,4506.4,0.00217229]
[1759851636433,2.9330173,4507.2,4506.4,0.00217229]
[1759851636730,0.238,4507.2,4507.0,4.04483451]
[1759851636927,0.238,4507.2,4506.7,4.04483451]
[1759851637131,0.238,4507.2,4506.4,0.00217229]
[1759851637328,1.0662,4507.9,4506.4,0.00217229]
[1759851637531,0.39899,4508.3,4506.4,0.00217229]
[1759851637726,0.39911,4506.9,4506.4,0.00217229]
[1759851637928,10.97213,4508.3,4506.4,0.00217229]
[1759851637929,1.0662,4506.7,4506.4,0.00217229]
[1759851638127,2.85010856,4506.8,4506.4,0.00217229]
[1759851638324,1.0567,4506.5,4506.4,0.00217229]
[1759851638624,3.99595672,4506.5,4504.5,0.6324]
[1759851638828,9.97367,4508.8,4504.5,0.6324]
[1759851639134,0.39909,4507.1,4504.8,0.39928]
[1759851639428,1.47773,4507.8,4506.7,4.04483451]
[1759851639635,0.39897,4508.4,4506.4,1.6526]
[1759851639830,1.0787,4509.3,4507.6,4.04483451]
[1759851640023,0.39897,4508.4,4507.8,4.04483451]
[1759851640226,0.39892,4509.1,4506.4,1.6526]
[1759851640426,2.89836025,4508.3,4506.4,1.6526]
[1759851640725,0.00222411,4509.4,4507.3,1.6526]
[1759851640923,0.00222411,4509.4,4509.3,4.04483451]
[1759851641131,1.67912411,4509.4,4509.3,0.00167594]
[1759851641431,0.39898,4508.3,4506.5,1.6526]
[1759851641633,0.3989,4509.2,4506.5,0.197]
[1759851641936,0.00222411,4509.4,4509.3,4.04483451]
[1759851642133,0.00222411,4509.4,4509.3,5.69743451]
[1759851642328,0.00222411,4509.4,4509.3,0.00238945]
[1759851642735,0.39895,4508.7,4507.4,1.6526]
[1759851642937,0.39895,4508.7,4505.4,0.6816]
[1759851642938,9.97516,4508.1,4501.5,9.9895]
[1759851643134,1.6769,4505.4,4503.6,4.04483451]
[1759851643428,1.6769,4504.6,4503.5,3.55229628]
[1759851643631,0.39932,4504.5,4503.3,3.55229628]
[1759851643833,0.00271752,4504.5,4503.3,0.00206151]
[1759851644033,3.12142681,4504.5,4503.3,0.00206151]
[1759851644225,0.00271752,4504.5,4504.4,3.55229628]
[1759851645833,0.238,4504.5,4504.4,3.55229628]
[1759851646035,0.36992975,4504.6,4504.4,3.55229628]
[1759851646233,0.36992975,4504.6,4503.6,1.6526]
[1759851646427,1.6769,4506.5,4504.5,3.55229628]
[1759851646630,0.39919,4505.9,4505.7,3.55229628]
[1759851646934,0.39922,4505.6,4505.5,3.53029628]
[1759851647235,0.39911,4506.8,4505.8,1.6526]
[1759851647436,1.6769,4507.0,4504.9,0.238]
[1759851647637,0.39925,4505.3,4503.4,1.6526]
[1759851647933,0.3993,4504.7,4503.4,1.6526]
[1759851648134,0.079,4504.9,4504.6,3.52756705]
[1759851648334,0.079,4504.9,4503.4,1.6526]
[1759851648335,0.39931,4504.6,4503.4,1.6526]
[1759851648535,0.00250281,4504.9,4503.4,1.6526]
[1759851648735,0.39939,4503.7,4502.5,1.6526]
[1759851649037,0.226,4504.3,4502.5,1.6526]
[1759851649227,0.39936,4504.0,4503.7,0.007]
[1759851649432,0.63735,4504.2,4503.7,0.007]
[1759851649634,0.00250281,4504.9,4504.3,3.52756705]
[1759851649934,0.00250281,4504.9,4503.7,0.007]
[1759851649935,0.39938,4503.8,4503.7,0.007]
[1759851650133,2.31428,4503.8,4503.7,0.007]
[1759851650436,2.0762,4504.7,4503.7,3.53456705]
[1759851650632,0.238,4504.6,4503.7,0.007]
[1759851650940,1.6769,4503.8,4503.7,0.007]
[1759851651236,0.238,4503.8,4502.6,1.6526]
[1759851651438,1.6769,4504.6,4502.6,1.6526]
[1759851651737,1.6769,4505.5,4503.2,1.6526]
[1759851651933,0.39929,4504.8,4504.6,3.52756705]
[1759851652132,0.39929,4504.8,4503.2,1.6526]
[1759851652133,0.39935,4504.2,4503.2,1.6526]
[1759851652332,1.6769,4505.5,4503.2,0.198]
[1759851652535,0.054,4506.0,4504.8,3.52756705]
[1759851652732,0.39916,4506.3,4504.0,0.238]
[1759851653037,2.67457,4507.4,4504.3,0.39933]
[1759851653235,0.58271515,4507.3,4505.3,1.6526]
[1759851653434,0.58271515,4507.3,4504.0,1.23639]
[1759851653435,0.58271515,4507.2,4505.9,1.6526]
[1759851653630,0.00209153,4507.3,4505.9,1.6526]
[1759851653835,0.00209153,4507.3,4507.2,3.52756705]
[1759851654029,0.00209153,4507.3,4507.2,3.53040593]
[1759851654240,1.6769,4508.4,4507.2,5.18300593]
[1759851654542,0.99722,4509.4,4507.2,5.18300593]
[1759851654543,0.39891,4509.1,4508.3,3.52756705]
[1759851654737,0.238,4509.6,4507.3,0.238]
[1759851654738,0.3989,4509.2,4508.9,3.52756705]
[1759851655035,0.39881,4510.3,4508.9,1.8906]
[1759851655338,0.39888,4509.4,4509.0,2.436022]
[1759851655537,0.3989,4509.2,4509.0,2.436022]
[1759851655728,1.6769,4509.1,4507.3,1.6526]
[1759851655929,0.39893,4508.9,4507.3,1.6526]
[1759851656330,0.39893,4508.9,4507.5,1.6526]
[1759851656532,0.00269358,4510.3,4508.9,1.6526]
[1759851656935,0.00269358,4510.3,4510.2,4.088622]
[1759851657244,1.4553934,4512.3,4510.2,6.6526]
[1759851657534,2.69535,4512.9,4510.2,1.8906]
[1759851657535,0.073,4512.4,4510.2,1.8906]
[1759851657740,0.39862,4512.4,4512.1,2.43332842]
[1759851657936,0.022,4512.9,4511.0,1.6526]
[1759851658139,2.0755,4512.7,4511.0,0.00172508]
[1759851658338,0.39867,4511.9,4511.6,2.43332842]
[1759851658537,0.39873,4511.1,4511.0,0.00172508]
[1759851658842,1.6769,4511.1,4509.4,1.6526]
[1759851659038,1.6769,4512.1,4509.4,1.6526]
[1759851659342,1.6769,4512.1,4507.7,34.626]
[1759851659343,0.39873,4511.2,4509.6,1.6526]
[1759851659534,0.39873,4511.2,4510.8,2.43332842]
[1759851659842,0.39878,4510.6,4509.6,1.6526]
[1759851660032,0.39874,4511.0,4509.6,1.65434605]
[1759851660237,0.39869,4511.6,4509.8,1.6526]
[1759851660439,0.39862,4512.5,4510.6,0.39877]
[1759851660640,0.02431649,4512.9,4512.5,1.6526]
[1759851660943,0.02431649,4512.9,4510.5,1.6526]
[1759851660944,1.6769,4512.3,4510.5,1.6526]
[1759851661139,0.238,4512.7,4510.6,0.197]
[1759851661343,0.238,4512.7,4511.3,2.03470842]
[1759851661535,1.6769,4511.7,4509.4,1.6526]
[1759851661732,0.39865,4512.0,4509.1,0.238]
[1759851661932,1.6769,4512.8,4510.9,1.6526]
[1759851662143,0.39872,4511.3,4510.9,1.6526]
[1759851662339,0.171,4511.9,4509.7,1.8366]
[1759851662640,0.171,4511.9,4508.7,1.5489]
[1759851662641,0.39878,4510.6,4508.7,1.5489]
[1759851662844,0.39882,4510.2,4509.8,2.03470842]
[1759851663041,1.6923,4512.0,4509.8,1.5489]
[1759851663236,1.6923,4511.1,4507.3,0.13547114]
[1759851663439,0.39881,4510.3,4509.7,2.03470842]
[1759851663635,0.39884,4510.0,4509.7,2.03470842]
[1759851663842,1.6923,4509.7,4507.4,0.39906]
[1759851664040,6.69415966,4509.7,4507.8,1.5489]
[1759851664345,6.69415966,4509.7,4509.6,2.03645447]
[1759851664346,0.00185966,4509.7,4509.6,2.03645447]
[1759851664649,6.93215966,4509.7,4507.6,1.5489]
[1759851664943,0.39889,4509.4,4508.0,2.03470842]
[1759851665138,0.39898,4508.3,4506.2,1.5489]
[1759851665340,0.39909,4507.1,4505.1,1.94816]
[1759851665641,1.6923,4508.1,4506.0,1.5489]
[1759851665837,0.39892,4509.0,4508.0,2.03470842]
[1759851666038,0.6652,4510.4,4507.3,1.5489]
[1759851666240,0.6652,4510.4,4507.2,0.8959]
[1759851666241,0.5690658,4509.6,4508.6,1.5489]
[1759851666541,0.39876,4510.8,4508.8,1.5489]
[1759851666734,0.12,4511.6,4509.6,3.18296876]
[1759851666936,0.12,4511.6,4509.6,1.5489]
[1759851667137,0.3987,4511.4,4509.8,0.39884]
[1759851667346,0.3987,4511.4,4509.6,1.5489]
[1759851667347,0.39872,4511.3,4511.0,1.63406876]
[1759851667548,0.39875,4511.0,4509.6,1.5489]
[1759851667744,0.39876,4510.9,4510.0,1.63406876]
[1759851667940,0.00241442,4511.0,4509.4,1.5489]
[1759851668140,0.00241442,4511.0,4509.7,0.39885]
[1759851668339,0.00241442,4511.0,4510.9,1.63406876]
[1759851668836,0.00241442,4511.0,4510.9,8.18296876]
[1759851669142,0.39869,4511.7,4510.9,3.18296876]
[1759851669342,0.39864,4512.1,4510.9,1.5489]
[1759851669540,4.59071293,4512.8,4510.9,1.5489]
[1759851669745,1.9303,4512.8,4510.9,1.5489]
[1759851669946,0.00271099,4512.8,4512.1,1.63406876]
[1759851670150,0.39861,4512.6,4512.4,1.63406876]
[1759851670349,0.39863,4512.2,4512.1,0.00207903]
[1759851670549,0.00271099,4512.8,4512.1,0.00207903]
[1759851670550,0.39862,4512.4,4512.1,0.00207903]
[1759851670753,0.00271099,4512.8,4512.1,0.00207903]
[1759851671050,0.3986,4512.7,4512.1,0.00207903]
[1759851671243,0.00271099,4512.8,4512.3,1.63406876]
[1759851671443,0.39859,4512.7,4512.3,1.63406876]
[1759851671651,0.40129099,4512.8,4512.3,1.63406876]
[1759851671842,0.40129099,4512.8,4512.6,1.63406876]
[1759851671843,0.00271099,4512.8,4512.6,1.63406876]
[1759851672047,0.39848,4513.9,4512.7,3.18296876]
[1759851672248,36.58966,4515.7,4512.8,1.5489]
[1759851672249,0.39848,4514.0,4512.8,1.5489]
[1759851672445,0.39847,4514.1,4513.7,1.21358876]
[1759851672651,2.81801261,4515.1,4513.7,1.21358876]
[1759851672945,0.39848,4514.0,4513.8,1.21358876]
[1759851673248,0.00157102,4514.0,4512.8,1.5489]
[1759851673451,0.00157102,4514.0,4513.2,1.21358876]
[1759851673644,0.3985,4513.7,4512.9,40.8]
[1759851673846,0.3985,4513.7,4513.5,1.21358876]
[1759851674246,0.39857,4513.0,4512.2,0.238]
[1759851674450,0.39855,4513.2,4513.1,1.21358876]
[1759851674644,0.39855,4513.2,4512.1,0.00207903]
[1759851674645,0.00157102,4514.0,4512.4,1.5489]
[1759851674850,0.39851,4513.6,4512.4,1.5489]
[1759851675044,0.3985,4513.8,4513.6,1.21358876]
[1759851675252,0.39853,4513.4,4512.4,1.5489]
[1759851675449,0.00157102,4514.0,4513.6,2.76248876]
[1759851675752,0.40005102,4514.0,4512.5,1.5489]
[1759851676148,0.40005102,4514.0,4512.4,0.39861]
[1759851676149,0.00157102,4514.0,4513.7,2.76248876]
[1759851676342,0.00157102,4514.0,4513.9,2.76248876]
[1759851676548,0.00157102,4514.0,4513.8,1.5489]
[1759851676744,0.00157102,4514.0,4512.9,1.5489]
[1759851676944,0.00157102,4514.0,4513.9,2.76248876]
[1759851677148,0.00157102,4514.0,4513.7,1.21358876]
[1759851677355,0.00157102,4514.0,4513.8,2.76248876]
[1759851677548,2.68824,4515.2,4513.7,1.21358876]
[1759851677753,1.6923,4515.2,4513.8,1.21358876]
[1759851678053,9.9575,4516.1,4513.8,1.5489]
[1759851678054,1.9303,4516.1,4513.8,1.5489]
[1759851678251,1.6923,4516.1,4514.7,1.21358876]
[1759851678458,0.00216722,4516.1,4514.6,1.5489]
[1759851678650,0.39832,4515.8,4515.4,1.21358876]
[1759851678854,0.00216722,4516.1,4515.4,1.21358876]
[1759851678855,0.54151099,4515.7,4515.5,1.5489]
[1759851679157,0.00216722,4516.1,4515.5,1.5489]
[1759851679453,0.54197111,4516.0,4515.4,1.55092822]
[1759851679751,0.00216722,4516.1,4515.4,1.55092822]
[1759851679752,0.54197111,4515.9,4515.8,1.5489]
[1759851680146,0.54197111,4515.9,4515.4,0.00202822]
[1759851680147,0.00216722,4516.1,4515.4,0.00202822]
[1759851680346,0.00216722,4516.1,4516.0,2.76248876]
[1759851680950,1.6923,4517.8,4516.0,2.76248876]
[1759851680951,0.39819,4517.3,4516.0,2.76248876]
[1759851681152,0.54328169,4517.2,4516.0,2.76248876]
[1759851681361,0.39828,4516.2,4516.0,1.21358876]
[1759851681658,0.39834,4515.6,4515.4,0.00202822]
[1759851681857,1.6923,4515.5,4515.4,0.00202822]
[1759851682047,2.23593055,4515.5,4515.4,0.00202822]
[1759851682252,0.54363055,4515.5,4515.4,0.00202822]
[1759851682450,1.12304023,4517.1,4515.4,2.76451698]
[1759851682756,0.39817,4517.5,4515.7,1.5489]
[1759851683055,0.022,4517.9,4516.9,1.21358876]
[1759851683244,0.022,4517.9,4515.8,40.995]
[1759851683245,0.022,4517.9,4516.8,1.5489]
[1759851683451,0.39824,4516.7,4515.9,1.5489]
[1759851683653,0.9954,4517.7,4515.9,1.5489]
[1759851683846,0.99538,4517.7,4516.6,1.21358876]
[1759851684153,3.0903816,4517.6,4515.9,1.5489]
[1759851684451,3.0903816,4517.6,4515.4,0.00202822]
[1759851684452,1.6923,4517.1,4515.4,0.00202822]
[1759851684660,0.99559,4516.8,4515.7,1.21358876]
[1759851684852,0.39832,4515.9,4515.7,1.21358876]
[1759851685051,1.6923,4516.5,4515.4,0.00202822]
[1759851685261,0.39834,4515.6,4515.4,0.00202822]
[1759851685452,1.6923,4516.5,4515.4,0.00202822]
[1759851685453,2.82553761,4516.4,4515.4,0.00202822]
[1759851685653,0.99554,4517.0,4515.8,1.21358876]
[1759851685855,0.3983,4516.0,4515.8,1.21358876]
[1759851686057,0.99556,4516.9,4515.4,0.00202822]
[1759851686359,0.39833,4515.7,4515.4,0.00202822]
[1759851686652,2.81675543,4516.8,4516.0,1.21358876]
[1759851686653,0.39829,4516.2,4516.0,1.21358876]
[1759851686856,0.99557,4516.9,4515.5,1.5489]
[1759851687054,1.71658205,4517.9,4515.5,1.5489]
[1759851687253,1.6923,4517.2,4515.8,1.5489]
[1759851687561,0.39825,4516.6,4515.5,1.5489]
[1759851687752,1.6923,4517.4,4516.3,1.21358876]
[1759851687753,0.39824,4516.8,4516.3,1.21358876]
[1759851687953,1.6923,4517.4,4516.6,1.21358876]
[1759851688154,0.39823,4516.8,4515.8,0.238]
[1759851688356,1.6923,4517.4,4515.9,1.5489]
[1759851688654,0.39826,4516.5,4516.0,0.238]
[1759851688854,0.39823,4516.9,4516.1,1.21358876]
[1759851689060,1.6923,4517.2,4515.9,1.5489]
[1759851689257,0.99553,4517.1,4515.4,0.17502822]
[1759851689454,1.6923,4516.5,4515.4,0.00202822]
[1759851689657,0.39833,4515.7,4515.5,1.21358876]
[1759851689860,1.6923,4516.5,4515.4,0.00202822]
[1759851690159,0.3983,4516.1,4516.0,1.21358876]
[1759851690358,0.39829,4516.2,4515.4,0.00202822]
[1759851690559,1.6923,4516.7,4515.4,0.00202822]
[1759851690762,0.39828,4516.3,4516.1,1.21358876]
[1759851691056,0.99551,4517.2,4515.4,1.55092822]
[1759851691057,0.02428205,4517.9,4516.0,1.5489]
[1759851691366,0.39822,4516.9,4516.0,1.5489]
[1759851691556,0.3982,4517.2,4516.0,1.94719]
[1759851691752,0.39821,4517.1,4516.0,1.5489]
[1759851691960,0.39816,4517.6,4516.3,0.39827]
[1759851692160,0.99526,4518.3,4515.9,0.116]
[1759851692161,1.12304023,4519.4,4516.4,5.0]
[1759851692359,1.6923,4520.7,4518.9,0.6159]
[1759851692562,0.39798,4519.7,4516.4,2.69972021]
[1759851692761,1.6566,4519.1,4516.4,34.556]
[1759851692961,2.05463,4519.1,4517.3,0.39818]
[1759851693163,1.65849453,4519.1,4517.3,0.00224465]
[1759851693365,0.39804,4519.0,4517.6,0.39815]
[1759851693660,0.39804,4519.0,4517.3,0.00224465]
[1759851693661,0.00189453,4519.1,4517.3,0.00224465]
[1759851693865,0.00189453,4519.1,4517.4,0.39817]
[1759851694055,0.39804,4519.0,4517.6,0.39816]
[1759851694253,0.00189453,4519.1,4517.8,0.39814]
[1759851694460,0.00189453,4519.1,4518.4,0.39809]
[1759851694654,0.00189453,4519.1,4518.5,0.238]
[1759851695257,0.00189453,4519.1,4517.7,0.39814]
[1759851695467,0.00189453,4519.1,4517.8,0.051]
[1759851695665,0.3981,4518.4,4517.9,40.8]
[1759851696065,0.39812,4518.0,4517.9,40.8]
[1759851696263,0.3981,4518.3,4517.4,0.08679424]
[1759851696466,1.6566,4519.0,4517.3,0.00224465]
[1759851696666,0.3981,4518.3,4517.3,0.00224465]
[1759851696866,0.00189453,4519.1,4517.4,40.8]
[1759851697067,0.00189453,4519.1,4518.6,0.39806]
[1759851697269,0.00189453,4519.1,4518.7,0.63606]
[1759851697468,0.39796,4519.8,4518.9,0.39804]
[1759851697768,0.99472,4520.7,4518.8,40.8]
[1759851698070,0.99472,4520.7,4518.8,41.038]
[1759851698071,0.398,4519.5,4518.8,41.038]
[1759851698273,0.39797,4519.8,4518.8,41.038]
[1759851698566,0.00229519,4519.8,4518.8,41.038]
[1759851698768,0.00229519,4519.8,4518.9,0.238]
[1759851699169,1.6344,4519.7,4518.8,40.8]
[1759851699667,0.398,4519.5,4518.8,41.038]
[1759851699869,0.00229519,4519.8,4518.8,41.038]
[1759851700058,0.00229519,4519.8,4518.9,0.238]